bitfinex/quotes_BTCUSD_20250213
["timestamp","ask_amount","ask_price","bid_price","bid_amount"]
[1739430149465,0.12179145,95918.0,95911.0,0.208525]
[1739430149643,0.12777087,95918.0,95911.0,0.208525]
[1739430149849,0.00433231,95917.0,95911.0,0.208525]
[1739430150073,0.10250365,95916.0,95915.0,0.156388]
[1739430150274,0.10683878,95916.0,95915.0,0.156388]
[1739430150479,0.10683878,95916.0,95913.0,0.003]
[1739430150658,0.10683878,95916.0,95913.0,0.156391]
[1739430151065,0.10250365,95916.0,95914.0,0.15639]
[1739430151261,0.00433202,95915.0,95910.0,0.208526]
[1739430151617,0.00433202,95915.0,95908.0,0.01050844]
[1739430151618,0.10250365,95914.0,95913.0,0.15639]
[1739430152017,0.10683553,95914.0,95913.0,0.15639]
[1739430152614,0.10250365,95914.0,95913.0,0.15639]
[1739430153180,0.10250365,95914.0,95913.0,0.15939]
[1739430153381,0.00697942,95916.0,95915.0,0.156388]
[1739430153680,0.00022387,95930.0,95915.0,0.156388]
[1739430153681,0.00966986,95925.0,95915.0,0.00104247]
[1739430153999,0.00966986,95925.0,95924.0,0.156373]
[1739430154497,0.11217351,95925.0,95924.0,0.156373]
[1739430154703,0.00966986,95925.0,95924.0,0.156373]
[1739430154906,0.01066986,95925.0,95924.0,0.156373]
[1739430155362,0.00966986,95925.0,95924.0,0.156373]
[1739430155703,0.01166986,95925.0,95924.0,0.156373]
[1739430156108,0.00797833,95925.0,95924.0,0.156373]
[1739430156876,0.00597833,95925.0,95924.0,0.156373]
[1739430157233,0.00797833,95925.0,95924.0,0.156373]
[1739430157893,0.00022387,95930.0,95920.0,0.287805]
[1739430158200,0.00022387,95930.0,95929.0,0.156365]
[1739430159679,0.00022387,95930.0,95929.0,0.157365]
[1739430160091,0.00122387,95930.0,95929.0,0.157365]
[1739430160664,0.00022387,95930.0,95929.0,0.157365]
[1739430161993,0.00022387,95930.0,95929.0,0.30840737]
[1739430162205,0.00022387,95930.0,95929.0,0.307365]
[1739430162410,0.00022387,95930.0,95929.0,1.888765]
[1739430163071,0.00022387,95930.0,95929.0,1.887765]
[1739430163309,0.00122387,95930.0,95929.0,1.893765]
[1739430163570,0.00322387,95930.0,95929.0,1.893765]
[1739430164635,0.00322387,95930.0,95929.0,1.9149812]
[1739430166199,0.00322387,95930.0,95929.0,1.93490499]
[1739430167278,0.00022366,95969.0,95929.0,1.93490499]
[1739430167279,0.00022366,95969.0,95968.0,0.156302]
[1739430169876,0.00222366,95969.0,95968.0,0.156302]
[1739430170282,0.00222366,95969.0,95966.0,0.156303]
[1739430170503,0.0454,95967.0,95960.0,0.16026076]
[1739430170699,0.10250365,95966.0,95960.0,0.15]
[1739430170902,0.00453437,95965.0,95960.0,0.15]
[1739430171249,0.10250365,95964.0,95963.0,0.156308]
[1739430171875,0.10250365,95964.0,95960.0,0.002]
[1739430172011,0.10250365,95964.0,95959.0,0.15]
[1739430172413,0.10250365,95964.0,95956.0,0.156321]
[1739430172414,0.10250365,95964.0,95960.0,0.002]
[1739430172620,0.0809,95963.0,95946.0,0.01018206]
[1739430172824,0.10250365,95962.0,95953.0,0.156326]
[1739430173096,0.10250365,95962.0,95935.0,0.0783]
[1739430173097,0.0462,95961.0,95960.0,0.004]
[1739430173228,0.15323509,95961.0,95960.0,0.01292]
[1739430173425,0.30954909,95961.0,95945.0,0.156339]
[1739430173627,0.10250365,95960.0,95942.0,0.08350687]
[1739430173973,0.16085029,95959.0,95946.0,0.012]
[1739430174206,0.10250365,95958.0,95946.0,0.012]
[1739430174413,0.10250365,95958.0,95944.0,0.156341]
[1739430174590,0.00453301,95957.0,95945.0,0.164339]
[1739430174798,0.10250365,95956.0,95945.0,0.164339]
[1739430175168,0.00453272,95955.0,95945.0,0.008]
[1739430175372,0.10250365,95954.0,95952.0,0.156327]
[1739430175778,0.10250365,95954.0,95953.0,0.156326]
[1739430176534,0.10250365,95954.0,95951.0,0.156328]
[1739430176944,0.10250365,95954.0,95953.0,0.002]
[1739430177126,0.10250365,95954.0,95953.0,0.004]
[1739430177594,0.10250365,95954.0,95953.0,0.002]
[1739430178744,0.18410365,95954.0,95953.0,0.002]
[1739430178959,0.23250365,95954.0,95953.0,0.002]
[1739430179361,0.23703235,95954.0,95953.0,0.002]
[1739430179587,0.23703235,95954.0,95953.0,0.004]
[1739430179786,0.23703235,95954.0,95953.0,0.002]
[1739430179991,0.156353,95937.0,95931.0,0.08350687]
[1739430180204,0.22420365,95936.0,95931.0,0.08350687]
[1739430180414,0.22871771,95936.0,95931.0,0.08350687]
[1739430182034,0.23467117,95936.0,95929.0,0.1564705]
[1739430182261,0.23467117,95936.0,95929.0,0.0001065]
[1739430182600,0.23467117,95936.0,95929.0,0.2085925]
[1739430182871,0.23667117,95936.0,95931.0,0.156362]
[1739430183045,0.23667117,95936.0,95929.0,0.1564705]
[1739430183363,0.23667117,95936.0,95929.0,0.0001065]
[1739430184394,0.16147117,95936.0,95929.0,0.0001065]
[1739430184612,0.11497117,95936.0,95935.0,0.15639904]
[1739430185607,0.10901771,95936.0,95935.0,4.404e-05]
[1739430186598,0.10450365,95936.0,95935.0,0.00015054]
[1739430186891,0.083,95954.0,95952.0,0.156327]
[1739430187154,0.0467,95956.0,95935.0,0.00015054]
[1739430187155,0.10250365,95953.0,95935.0,0.00015054]
[1739430187411,0.10701311,95953.0,95951.0,0.156329]
[1739430187652,0.10701311,95953.0,95952.0,0.156328]
[1739430187894,0.10701311,95953.0,95950.0,0.15633]
[1739430188620,0.10701311,95953.0,95939.0,0.208465]
[1739430188868,0.10701311,95953.0,95952.0,0.156328]
[1739430189107,0.10701311,95953.0,95935.0,0.00015054]
[1739430189334,0.10701311,95953.0,95947.0,0.156336]
[1739430189562,0.10701311,95953.0,95948.0,0.156334]
[1739430189563,0.10350365,95953.0,95948.0,0.156334]
[1739430189811,0.00451682,95952.0,95950.0,0.001]
[1739430190064,0.00451682,95952.0,95951.0,0.156329]
[1739430190555,0.00022366,95965.0,95944.0,0.01012091]
[1739430190556,0.00022366,95965.0,95959.0,0.156315]
[1739430190807,0.00022366,95965.0,95947.0,0.208448]
[1739430190808,0.003,95953.0,95952.0,0.156328]
[1739430192004,0.00022366,95965.0,95947.0,0.208447]
[1739430192214,0.00022366,95965.0,95959.0,0.156315]
[1739430192692,0.00022366,95965.0,95960.0,0.156314]
[1739430193340,0.00022366,95965.0,95952.0,0.01]
[1739430193575,0.00022366,95965.0,95961.0,0.156312]
[1739430193821,0.00022366,95965.0,95952.0,0.208437]
[1739430194069,0.00022366,95965.0,95964.0,0.156308]
[1739430194351,0.00022366,95965.0,95964.0,0.30734985]
[1739430194530,0.00022366,95965.0,95964.0,0.306308]
[1739430195581,0.00122366,95965.0,95964.0,0.306308]
[1739430195787,0.00122366,95965.0,95964.0,0.312308]
[1739430196077,0.00022366,95965.0,95964.0,0.312308]
[1739430196567,0.00122366,95965.0,95964.0,0.321308]
[1739430196995,0.00122366,95965.0,95964.0,0.165]
[1739430200360,0.00122366,95965.0,95964.0,0.321308]
[1739430200589,0.00122366,95965.0,95964.0,0.165]
[1739430200840,0.00122366,95965.0,95964.0,0.321308]
[1739430201417,0.00122366,95965.0,95964.0,0.165]
[1739430201620,0.00022366,95965.0,95964.0,0.156]
[1739430201772,0.00122366,95965.0,95964.0,0.164]
[1739430201969,0.00122366,95965.0,95964.0,0.008]
[1739430202189,0.10372731,95965.0,95964.0,0.012]
[1739430202401,0.10372731,95965.0,95964.0,0.004]
[1739430202402,0.1072886,95965.0,95964.0,0.004]
[1739430202607,0.1082886,95965.0,95964.0,0.005]
[1739430202808,0.1082886,95965.0,95964.0,0.008]
[1739430203011,0.1082886,95965.0,95964.0,0.003]
[1739430203222,0.1072886,95965.0,95952.0,0.15]
[1739430203423,0.10250365,95964.0,95951.0,0.15]
[1739430203831,0.004562,95963.0,95956.0,0.156321]
[1739430204081,0.10250365,95962.0,95958.0,0.156317]
[1739430204250,0.10250365,95962.0,95951.0,0.15]
[1739430204467,0.00456072,95961.0,95948.0,0.08350687]
[1739430204658,0.10250365,95960.0,95948.0,0.08350687]
[1739430204915,0.10250365,95960.0,95956.0,0.15632]
[1739430205119,0.00456044,95959.0,95948.0,0.08350687]
[1739430205242,0.10250365,95958.0,95948.0,0.08350687]
[1739430205445,0.10250365,95958.0,95957.0,0.15632]
[1739430206285,0.10350365,95958.0,95957.0,0.15632]
[1739430206928,0.10250365,95958.0,95957.0,0.15632]
[1739430207134,0.10250365,95958.0,95957.0,0.15932]
[1739430207736,0.10250365,95958.0,95957.0,0.003]
[1739430207997,0.10250365,95958.0,95957.0,0.15932]
[1739430208213,0.10250365,95958.0,95957.0,0.16132]
[1739430210041,0.00022366,95965.0,95964.0,0.156308]
[1739430210464,0.00022366,95965.0,95964.0,1.656308]
[1739430210875,0.00022366,95965.0,95964.0,0.156308]
[1739430211889,0.00322366,95965.0,95964.0,0.156308]
[1739430216379,0.00322366,95965.0,95964.0,0.15734998]
[1739430216528,0.00322366,95965.0,95964.0,0.156308]
[1739430217197,0.00322366,95965.0,95964.0,1.656308]
[1739430217738,0.00322366,95965.0,95964.0,1.659308]
[1739430218145,0.00022366,95965.0,95964.0,1.656308]
[1739430218395,0.00122366,95965.0,95964.0,1.663308]
[1739430218804,0.00122366,95965.0,95964.0,0.163308]
[1739430219006,0.00022366,95965.0,95964.0,0.159308]
[1739430219255,0.00122366,95965.0,95964.0,0.163308]
[1739430220242,0.00122366,95965.0,95964.0,0.31434985]
[1739430220494,0.00122366,95965.0,95964.0,1.811308]
[1739430222035,0.00122366,95965.0,95964.0,1.8114145]
[1739430223176,0.00122366,95965.0,95964.0,0.3114145]
[1739430225336,0.00022366,95965.0,95964.0,0.3044145]
[1739430225556,0.00122366,95965.0,95964.0,0.3184145]
[1739430225802,0.00122366,95965.0,95964.0,0.3124145]
[1739430226052,0.00022366,95965.0,95964.0,0.3044145]
[1739430226273,0.00122366,95965.0,95964.0,0.3174145]
[1739430226512,0.00122366,95965.0,95964.0,0.3124145]
[1739430226751,0.00122366,95965.0,95964.0,0.0081065]
[1739430226752,0.10372731,95965.0,95964.0,0.0081065]
[1739430226974,0.18102731,95965.0,95964.0,0.1644145]
[1739430227214,0.10829194,95965.0,95964.0,0.1644145]
[1739430227677,0.00478829,95965.0,95964.0,0.1564145]
[1739430227913,0.00122366,95965.0,95964.0,0.1694145]
[1739430228137,0.00122366,95965.0,95964.0,0.16545642]
[1739430228380,0.00022366,95965.0,95964.0,0.16045642]
[1739430228623,0.00022366,95965.0,95964.0,0.15745642]
[1739430229073,0.00022366,95965.0,95964.0,0.16045642]
[1739430229294,0.00022366,95965.0,95964.0,0.15945642]
[1739430229734,0.00022366,95965.0,95964.0,0.16245642]
[1739430231305,0.00022366,95965.0,95964.0,1.81245642]
[1739430231503,0.00022366,95965.0,95964.0,1.8114145]
[1739430234632,0.00022366,95965.0,95964.0,0.3094145]
[1739430234793,0.00022366,95965.0,95964.0,0.3064145]
[1739430234994,0.00122366,95965.0,95964.0,0.3184145]
[1739430235204,0.00122366,95965.0,95964.0,1.8254145]
[1739430235403,0.00022366,95965.0,95964.0,1.8134145]
[1739430235804,0.00022366,95965.0,95964.0,1.8204145]
[1739430236669,0.00122366,95965.0,95964.0,1.8344145]
[1739430238101,0.00122366,95965.0,95964.0,0.3344145]
[1739430238452,0.00022366,95965.0,95964.0,0.3204145]
[1739430238652,0.00022366,95965.0,95964.0,1.8064145]
[1739430238893,0.00022366,95965.0,95964.0,1.8134145]
[1739430239102,0.00022366,95965.0,95964.0,1.9132145]
[1739430239512,0.00022366,95965.0,95964.0,1.94566742]
[1739430239720,0.00122366,95965.0,95964.0,1.95966742]
[1739430240333,0.00022366,95965.0,95964.0,1.94566742]
[1739430240536,0.00122366,95965.0,95964.0,2.05517107]
[1739430240943,6.6e-07,95965.0,95964.0,2.06217107]
[1739430241159,9.8e-07,95969.0,95968.0,0.339302]
[1739430241363,9.8e-07,95969.0,95968.0,1.14205857]
[1739430241568,0.0457,96006.0,95995.0,0.156258]
[1739430241780,0.00034315,95996.0,95995.0,0.156258]
[1739430241993,0.00493069,95996.0,95995.0,1.656258]
[1739430242196,0.00034315,95996.0,95995.0,1.656258]
[1739430242407,0.00493069,95996.0,95995.0,1.656258]
[1739430242666,0.00034315,95996.0,95995.0,1.656258]
[1739430242806,0.00493069,95996.0,95995.0,1.806258]
[1739430243021,0.00034315,95996.0,95995.0,1.806258]
[1739430243233,0.00493069,95996.0,95995.0,1.81656297]
[1739430243446,0.00034315,95996.0,95995.0,1.81656297]
[1739430243851,0.00034315,95996.0,95995.0,1.81956297]
[1739430244059,0.00494046,95996.0,95995.0,1.81956297]
[1739430244234,0.00034315,95996.0,95995.0,1.82356297]
[1739430244470,0.00494046,95996.0,95995.0,1.81656297]
[1739430244675,0.00034315,95996.0,95995.0,1.82156297]
[1739430244859,0.00494248,95996.0,95995.0,1.82656297]
[1739430245072,0.00034315,95996.0,95995.0,0.32656297]
[1739430245291,0.00494248,95996.0,95995.0,0.32656297]
[1739430245496,0.00034315,95996.0,95995.0,1.82656297]
[1739430245697,0.00494248,95996.0,95995.0,1.82656297]
[1739430245901,0.00034315,95996.0,95995.0,1.82656297]
[1739430246105,0.00494244,95996.0,95995.0,1.82156297]
[1739430246359,0.00034315,95996.0,95995.0,1.82456297]
[1739430246774,0.00495643,95996.0,95995.0,1.82456297]
[1739430246985,0.00034315,95996.0,95995.0,1.82156297]
[1739430247188,0.00495643,95996.0,95995.0,1.83056297]
[1739430247397,0.00034315,95996.0,95995.0,1.83756297]
[1739430247603,0.00495643,95996.0,95995.0,1.83756297]
[1739430247810,0.00034315,95996.0,95995.0,1.96306662]
[1739430248008,0.00495643,95996.0,95995.0,1.96306662]
[1739430248628,0.00495643,95996.0,95995.0,0.46306662]
[1739430248844,6.28308306,96000.0,95999.0,0.156251]
[1739430249051,6.17891806,96000.0,95999.0,1.93175465]
[1739430249256,6.17891806,96000.0,95999.0,1.94175465]
[1739430249465,6.17891806,96000.0,95999.0,2.01815465]
[1739430249673,6.17891806,96000.0,95999.0,2.35515465]
[1739430250113,6.09558606,96000.0,95999.0,2.40340311]
[1739430250364,6.09558606,96000.0,95999.0,2.37015465]
[1739430250564,6.09558606,96000.0,95999.0,2.37715465]
[1739430250778,6.07475306,96000.0,95999.0,2.37715465]
[1739430250901,6.05392006,96000.0,95999.0,2.41040311]
[1739430251134,5.99142106,96000.0,95999.0,2.44191105]
[1739430251342,5.97058806,96000.0,95999.0,2.44191105]
[1739430252188,5.97058806,96000.0,95999.0,2.37715465]
[1739430252401,5.97058806,96000.0,95999.0,2.46215465]
[1739430252613,5.97058806,96000.0,95999.0,2.35215465]
[1739430252820,5.97058806,96000.0,95999.0,0.78075465]
[1739430253031,5.97058806,96000.0,95999.0,0.655251]
[1739430253653,5.97058806,96000.0,95999.0,0.648251]
[1739430253867,5.97058806,96000.0,95999.0,0.633251]
[1739430254126,5.97058806,96000.0,95999.0,0.504251]
[1739430254550,5.97058806,96000.0,95999.0,0.497251]
[1739430254785,5.97058806,96000.0,95999.0,2.147251]
[1739430255225,5.97058806,96000.0,95999.0,2.154251]
[1739430255420,5.97058806,96000.0,95999.0,2.140251]
[1739430255849,5.97058806,96000.0,95999.0,2.162251]
[1739430256270,5.97058806,96000.0,95999.0,2.147251]
[1739430256501,5.97502626,96000.0,95999.0,2.147251]
[1739430256710,5.97502626,96000.0,95999.0,2.156251]
[1739430257764,5.97502626,96000.0,95999.0,0.656251]
[1739430258376,5.97502626,96000.0,95999.0,2.156251]
[1739430268841,5.97502626,96000.0,95999.0,2.1563575]
[1739430270783,5.97502626,96000.0,95999.0,2.28186115]
[1739430272775,5.97502626,96000.0,95999.0,2.1563575]
[1739430274436,5.97502626,96000.0,95999.0,2.21181266]
[1739430275060,5.97502626,96000.0,95999.0,2.31431631]
[1739430276107,5.97502626,96000.0,95999.0,2.39451631]
[1739430276312,5.87086126,96000.0,95999.0,2.36206115]
[1739430276524,5.87086126,96000.0,95999.0,2.404523]
[1739430276772,4.59283066,96000.0,95999.0,2.961023]
[1739430276975,4.38705536,96000.0,95999.0,2.91456115]
[1739430277181,4.38705536,96000.0,95999.0,2.92156115]
[1739430277381,4.36105536,96000.0,95999.0,2.91256115]
[1739430277795,4.34022236,96000.0,95999.0,2.92756115]
[1739430278005,4.23089036,96000.0,95999.0,2.92056115]
[1739430278219,4.23089036,96000.0,95999.0,2.90556115]
[1739430278630,4.22509036,96000.0,95999.0,2.92056115]
[1739430278865,4.21469488,96000.0,95999.0,2.92056115]
[1739430279349,4.11052988,96000.0,95999.0,2.95999795]
[1739430279808,4.06886388,96000.0,95999.0,1.45999795]
[1739430280011,4.04803088,96000.0,95999.0,1.45999795]
[1739430280217,3.99405788,96000.0,95999.0,1.45999795]
[1739430280417,3.94010488,96000.0,95999.0,2.95999795]
[1739430280629,3.79331999,96000.0,95999.0,2.95999795]
[1739430280844,3.77248699,96000.0,95999.0,2.95999795]
[1739430281042,3.6760393,96000.0,95999.0,2.95999795]
[1739430281258,3.6343733,96000.0,95999.0,2.95999795]
[1739430281461,2.72012437,96000.0,95999.0,3.41843695]
[1739430281689,2.65688336,96000.0,95999.0,3.5108118]
[1739430281903,2.11547602,96000.0,95999.0,3.5036118]
[1739430282124,1.96082812,96000.0,95999.0,3.5036118]
[1739430282326,0.91967944,96000.0,95999.0,3.4966118]
[1739430282525,0.82521944,96000.0,95999.0,3.471175]
[1739430282733,0.81789018,96000.0,95999.0,3.478375]
[1739430282937,0.71372518,96000.0,95999.0,3.49657883]
[1739430283136,0.71372518,96000.0,95999.0,3.48857883]
[1739430283387,0.71372518,96000.0,95999.0,3.50357883]
[1739430283992,0.65122618,96000.0,95999.0,3.48857883]
[1739430284190,0.60956018,96000.0,95999.0,3.43882243]
[1739430284458,0.60956018,96000.0,95999.0,3.61582243]
[1739430284636,0.60956018,96000.0,95999.0,1.75851215]
[1739430284853,0.60956018,96000.0,95999.0,1.59395415]
[1739430285078,0.59320769,96000.0,95999.0,1.58305215]
[1739430285308,0.50987569,96000.0,95999.0,1.61544337]
[1739430285490,0.30269932,96000.0,95999.0,1.73305215]
[1739430285790,0.29821881,96000.0,95999.0,1.75605215]
[1739430285996,0.19405781,96000.0,95999.0,1.7884386]
[1739430286217,0.19405781,96000.0,95999.0,1.7956386]
[1739430286400,0.19405781,96000.0,95999.0,3.2956386]
[1739430286927,0.17322681,96000.0,95999.0,3.3455386]
[1739430287125,0.08990281,96000.0,95999.0,3.3455386]
[1739430287776,0.08990281,96000.0,95999.0,3.37704654]
[1739430288174,0.00657881,96000.0,95999.0,3.410295]
[1739430288388,4.7e-07,96009.0,96008.0,0.02]
[1739430288589,4.454e-05,96009.0,96008.0,0.53548074]
[1739430288827,4.454e-05,96009.0,96008.0,0.56680187]
[1739430288950,5.4e-07,96009.0,96008.0,2.06680187]
[1739430289580,5.4e-07,96009.0,96008.0,2.08180187]
[1739430289783,5.4e-07,96009.0,96008.0,2.24448187]
[1739430289979,0.00022387,96034.0,96025.0,0.516209]
[1739430290184,0.00066469,96026.0,96025.0,0.65171265]
[1739430291182,0.00066469,96026.0,96025.0,2.15171265]
[1739430291865,0.00066469,96026.0,96025.0,2.16218926]
[1739430292070,6.9e-07,96026.0,96025.0,2.16218926]
[1739430292494,6.9e-07,96026.0,96025.0,2.16918926]
[1739430292705,6.9e-07,96026.0,96025.0,2.16218926]
[1739430292921,6.9e-07,96026.0,96025.0,2.17718926]
[1739430293128,6.9e-07,96026.0,96025.0,2.18418926]
[1739430293344,6.9e-07,96026.0,96025.0,2.17718926]
[1739430293552,6.9e-07,96026.0,96025.0,2.18980595]
[1739430293759,9.25e-05,96034.0,96033.0,0.306196]
[1739430293966,9.25e-05,96034.0,96033.0,0.75869965]
[1739430294184,9.25e-05,96034.0,96033.0,0.76869965]
[1739430294397,0.0764,96052.0,96033.0,0.76869965]
[1739430294398,0.1258,96052.0,96048.0,0.1]
[1739430294627,0.00053217,96049.0,96048.0,0.54015465]
[1739430294861,0.00053217,96049.0,96048.0,0.56318259]
[1739430295089,0.00053217,96049.0,96048.0,0.59643105]
[1739430295871,0.00053217,96049.0,96048.0,0.92343105]
[1739430296831,0.00053217,96049.0,96048.0,1.04543105]
[1739430298545,0.00053217,96049.0,96048.0,1.01218259]
[1739430298748,0.00053217,96049.0,96048.0,0.88067465]
[1739430299120,0.00053217,96049.0,96048.0,0.91218259]
[1739430299597,0.00053217,96049.0,96048.0,0.88067465]
[1739430299773,0.00053217,96049.0,96048.0,0.91218259]
[1739430299983,0.00053217,96049.0,96048.0,0.88067465]
[1739430300351,0.00053217,96049.0,96048.0,0.91218259]
[1739430300752,0.12623217,96049.0,96048.0,0.655171]
[1739430301816,0.12623217,96049.0,96048.0,0.499]
[1739430301956,0.12623217,96049.0,96048.0,0.484]
[1739430302369,0.12623217,96049.0,96048.0,0.499]
[1739430302809,0.12623217,96049.0,96048.0,0.477]
[1739430302991,0.12623217,96049.0,96048.0,0.484]
[1739430303204,0.12623217,96049.0,96048.0,0.489]
[1739430303627,0.12645583,96049.0,96048.0,0.496]
[1739430305211,0.12645583,96049.0,96048.0,0.484]
[1739430305620,0.12645583,96049.0,96048.0,0.497]
[1739430305959,0.12645583,96049.0,96048.0,0.157]
[1739430306362,0.12645583,96049.0,96048.0,0.15]
[1739430306728,0.12645583,96049.0,96048.0,0.163]
[1739430306930,0.1097,96119.0,96060.0,0.306152]
[1739430306931,0.04301549,96061.0,96060.0,0.306152]
[1739430307123,0.04301549,96061.0,96060.0,0.15]
[1739430307386,0.12318615,96061.0,96060.0,0.15]
[1739430307588,0.11861549,96061.0,96060.0,0.15]
[1739430307787,0.22568994,96061.0,96060.0,0.15]
[1739430308996,0.22568994,96061.0,96060.0,0.154]
[1739430309201,0.22102709,96061.0,96060.0,0.154]
[1739430309405,0.22102709,96061.0,96060.0,0.004]
[1739430309406,0.38174888,96061.0,96060.0,0.004]
[1739430309609,0.10707544,96061.0,96041.0,0.08350687]
[1739430309807,0.0766,96058.0,96041.0,0.29175087]
[1739430310072,0.0766,96056.0,96049.0,0.306169]
[1739430310230,0.10250365,96056.0,96049.0,0.15]
[1739430310429,0.10707587,96055.0,96049.0,0.15]
[1739430311356,0.10707587,96055.0,96046.0,0.306173]
[1739430311555,0.10707587,96055.0,96046.0,0.15]
[1739430311797,0.02089579,96052.0,96041.0,0.08350687]
[1739430311981,0.10250365,96051.0,96042.0,0.208242]
[1739430312129,0.0489,96050.0,96042.0,0.208242]
[1739430312340,0.15597575,96050.0,96047.0,0.306172]
[1739430312548,0.15597575,96050.0,96049.0,0.005]
[1739430312918,0.10250365,96050.0,96046.0,0.006]
[1739430313125,0.1254,96047.0,96046.0,0.006]
[1739430313444,0.23247615,96047.0,96046.0,0.01452]
[1739430313640,0.23247615,96047.0,96042.0,0.157]
[1739430313844,0.1254,96045.0,96042.0,0.15]
[1739430314041,0.17800365,96044.0,96043.0,0.00852]
[1739430314266,0.10706586,96044.0,96042.0,0.16]
[1739430314471,0.1254,96043.0,96042.0,0.01]
[1739430314628,0.23246685,96043.0,96042.0,0.01856]
[1739430314874,0.1267,96040.0,96034.0,0.0001065]
[1739430315102,0.1267,96037.0,96034.0,0.00023867]
[1739430315300,0.1267,96035.0,96034.0,0.00023867]
[1739430315548,0.22920365,96035.0,96034.0,0.00023867]
[1739430315696,0.23375463,96035.0,96034.0,0.00023867]
[1739430316647,0.23375463,96035.0,96034.0,0.00423867]
[1739430317014,0.23375463,96035.0,96034.0,0.00023867]
[1739430317381,0.23375463,96035.0,96034.0,0.00223867]
[1739430318296,0.23375463,96035.0,96034.0,0.00423867]
[1739430318693,0.23375463,96035.0,96034.0,0.00223867]
[1739430319115,0.23375463,96035.0,96034.0,0.30843267]
[1739430319116,0.00455098,96035.0,96034.0,0.30843267]
[1739430319559,0.08,96043.0,96035.0,0.15]
[1739430319827,0.10250365,96042.0,96036.0,0.00852]
[1739430320036,0.1070255,96042.0,96035.0,0.15]
[1739430320417,0.1070255,96042.0,96035.0,0.306191]
[1739430320626,0.1070255,96042.0,96041.0,0.156183]
[1739430320832,0.00452185,96042.0,96041.0,0.156183]
[1739430321032,0.08,96043.0,96041.0,0.156183]
[1739430322357,0.08,96043.0,96042.0,0.15]
[1739430322558,0.08,96043.0,96042.0,0.15852]
[1739430322758,0.0492,96045.0,96044.0,0.15]
[1739430323187,0.0492,96045.0,96044.0,0.306178]
[1739430325011,0.0492,96045.0,96042.0,0.20924]
[1739430325012,0.0492,96045.0,96042.0,0.151]
[1739430325183,0.0492,96045.0,96043.0,0.00852]
[1739430325397,0.0492,96045.0,96044.0,0.156178]
[1739430326648,0.0492,96045.0,96044.0,0.160178]
[1739430328044,0.0492,96045.0,96044.0,0.164178]
[1739430328298,0.0492,96045.0,96044.0,0.17453873]
[1739430332256,0.0492,96045.0,96044.0,0.01836073]
[1739430332477,0.0492,96045.0,96044.0,0.17453873]
[1739430335447,0.15170365,96045.0,96044.0,0.01836073]
[1739430335847,0.15903069,96045.0,96044.0,0.17453873]
[1739430336257,0.15903069,96045.0,96044.0,0.01836073]
[1739430336457,0.15903069,96045.0,96044.0,0.01436073]
[1739430336458,0.24133069,96045.0,96044.0,0.01436073]
[1739430336663,0.24133069,96045.0,96044.0,0.01036073]
[1739430336866,0.24133069,96045.0,96044.0,0.01436073]
[1739430337271,0.26176577,96045.0,96044.0,0.01436073]
[1739430337481,0.28102594,96045.0,96044.0,0.01436073]
[1739430337684,0.26059086,96045.0,96044.0,0.01036073]
[1739430338040,0.26059086,96045.0,96044.0,0.01236073]
[1739430338250,0.26059086,96045.0,96044.0,0.01036073]
[1739430338880,0.26655519,96045.0,96044.0,0.01036073]
[1739430339581,0.26655519,96045.0,96044.0,0.01236073]
[1739430339781,0.26655519,96045.0,96044.0,0.01246713]
[1739430340784,0.26655519,96045.0,96044.0,0.01446713]
[1739430340785,0.24729502,96045.0,96044.0,0.01446713]
[1739430342528,0.27215595,96045.0,96044.0,0.01046713]
[1739430342947,0.28766258,96045.0,96044.0,0.01146713]
[1739430344303,0.30692481,96045.0,96044.0,0.01146713]
[1739430348353,0.46310081,96045.0,96044.0,0.01146713]
[1739430349073,0.46310081,96045.0,96044.0,0.01046713]
[1739430349370,0.46410081,96045.0,96044.0,0.01146713]
[1739430350047,0.46310081,96045.0,96044.0,0.01246713]
[1739430350419,0.46410081,96045.0,96044.0,0.01246713]
[1739430352278,0.46310081,96045.0,96044.0,0.01046713]
[1739430352494,0.46410081,96045.0,96044.0,0.01146713]
[1739430355396,0.46410081,96045.0,96044.0,0.01046713]
[1739430355598,0.46310081,96045.0,96044.0,0.01146713]
[1739430355743,0.46410081,96045.0,96044.0,0.0011064]
[1739430356159,0.46310081,96045.0,96044.0,0.0011064]
[1739430356357,0.46310081,96045.0,96044.0,0.0001064]
[1739430356555,0.46410081,96045.0,96044.0,0.0001064]
[1739430356757,0.46410081,96045.0,96044.0,0.0011064]
[1739430357006,0.46310081,96045.0,96044.0,0.0001064]
[1739430357172,0.46310081,96045.0,96044.0,0.0011064]
[1739430357383,0.46410081,96045.0,96044.0,0.0011064]
[1739430361448,0.156193,96035.0,96034.0,0.00023867]
[1739430361609,0.156193,96035.0,96034.0,0.0105994]
[1739430361610,0.39039665,96035.0,96034.0,0.0105994]
[1739430361998,0.3974686,96035.0,96034.0,0.0105994]
[1739430362580,0.41297523,96035.0,96034.0,0.0105994]
[1739430362823,0.41397523,96035.0,96034.0,0.0125994]
[1739430363177,0.46406272,96035.0,96034.0,0.0105994]
[1739430363352,0.46406272,96035.0,96034.0,0.0115994]
[1739430363555,0.46506272,96035.0,96034.0,0.0115994]
[1739430364181,0.47526656,96035.0,96034.0,0.0115994]
[1739430364833,0.31907356,96035.0,96034.0,0.0115994]
[1739430365051,0.22606972,96035.0,96034.0,0.0115994]
[1739430365251,0.17716972,96035.0,96034.0,0.0115994]
[1739430366090,0.14634446,96035.0,96034.0,0.0115994]
[1739430367023,0.29299492,96035.0,96034.0,0.0115994]
[1739430367892,0.13680192,96035.0,96034.0,0.0115994]
[1739430369379,0.29299492,96035.0,96034.0,0.0115994]
[1739430369576,0.13680192,96035.0,96034.0,0.0115994]
[1739430371331,0.29299492,96035.0,96034.0,0.0115994]
[1739430372628,0.30252737,96035.0,96034.0,0.0115994]
[1739430372799,0.33340812,96035.0,96034.0,0.0115994]
[1739430373385,0.17721512,96035.0,96034.0,0.0115994]
[1739430374188,0.14633437,96035.0,96034.0,0.0115994]
[1739430375672,0.13680192,96035.0,96034.0,0.0115994]
[1739430376825,0.11753969,96035.0,96034.0,0.0115994]
[1739430378712,0.01503604,96035.0,96034.0,0.1615994]
[1739430378920,0.01503604,96035.0,96034.0,0.16264055]
[1739430379081,0.00796409,96035.0,96034.0,0.4652442]
[1739430379284,0.00796409,96035.0,96034.0,0.59668159]
[1739430379487,0.00696409,96035.0,96034.0,0.59668159]
[1739430379990,0.00696409,96035.0,96034.0,0.59868159]
[1739430380338,0.00596409,96035.0,96034.0,0.59768159]
[1739430380562,0.09269401,96054.0,96044.0,0.306178]
[1739430380792,0.09269401,96054.0,96044.0,0.39423873]